Cogmind - Beta 9.5 @@@ ROGUE MODE // 2020.04.07 @ 17:34:25 // Winter2019/RPGLIKE Player: IAMCRAIG Result: Destroyed by G-47 Trooper with Particle Gun Performance ------------- Evolutions (0) 0 Regions Visited (2) 400 Robots Destroyed (28) 140 Value Destroyed (613) 613 Prototype IDs (0) 0 Alien Tech Used (0) 0 Bonus (43) 43 TOTAL SCORE: 1196 Bonus ------- High Alert Combat Kills 43 Cogmind --------- Core Integrity 0/600 Matter 201/300 Energy 160/160 System Corruption 1% Temperature Cool (11) Movement Treading (160) Location -10/Mines Parts ------- > --- POWER (1) -------- Light Nuclear Core > --- PROPULSION (2) --- Light Treads Light Treads > --- UTILITY (4) ------ Sensor Array Improved Signal Interpreter Targeting Computer Hacking Suite > --- WEAPON (2) ------- Light Assault Rifle Mini Grenade Launcher > --- INVENTORY (2) ---- Improved Heat Sink High-capacity Battery (400) Peak State ------------ > --- POWER ------------ Light Nuclear Core > --- PROPULSION ------- Light Treads Light Treads > --- UTILITY ---------- Structural Scanner Improved Signal Interpreter Targeting Computer Hacking Suite > --- WEAPON ----------- Light Assault Rifle Mini Grenade Launcher > --- INVENTORY -------- High-capacity Battery [Rating: 15] Favorites ----------- Power Light Nuclear Core Engine Light Ion Engine Power Core Light Nuclear Core Propulsion Light Treads Treads Light Treads Utility Targeting Computer Device Sensor Array Processor Targeting Computer Hackware Hacking Suite Weapon Light Assault Rifle Ballistic Gun Light Assault Rifle Launcher Mini Grenade Launcher Build | -11 -10 -10 ------- Run | Scr Mat Min Slots Evolved 5 | 3 2 . Power . | . . . Propulsion 1 | 1 . . Utility 3 | 1 2 . Weapon 1 | 1 . . Parts Attached 24 | 9 15 . Power 4 | 2 2 . Engine 2 | 2 . . Core 2 | . 2 . Reactor . | . . . Propulsion 6 | 2 4 . Treads 6 | 2 4 . Leg . | . . . Wheel . | . . . Hover . | . . . Flight . | . . . Utility 10 | 2 8 . Device 3 | 1 2 . Storage . | . . . Processor 6 | 1 5 . Hackware 1 | . 1 . Protection . | . . . Artifact . | . . . Weapon 4 | 3 1 . Energy Gun . | . . . Energy Cannon . | . . . Ballistic Gun 3 | 3 . . Ballistic Cannon . | . . . Launcher 1 | . 1 . Special Weapon . | . . . Impact Weapon . | . . . Slashing Weapon . | . . . Piercing Weapon . | . . . Special Melee Weapon . | . . . Unidentified Prototypes . | . . . Parts Lost . | . . . Power . | . . . Propulsion . | . . . Utility . | . . . Weapon . | . . . Highest Loss Streak . | . . . Average Slot Usage (%) 99 | . 99 100 Engine 2 | . 2 . Core 9 | . 9 11 Treads 25 | . 25 22 Device 5 | . 4 11 Processor 24 | . 25 22 Hackware 5 | . 4 11 Ballistic Gun 12 | . 12 11 Launcher 12 | . 12 11 Naked Turns . | . . . Heaviest Build 8 | 8 8 8 Greatest Support 45 | 20 45 8 Greatest Overweight (x) . | . . . Average Overweight (x) . | . . . Largest Inventory Capacity 2 | 1 2 2 Average Capacity 1 | . 1 2 Most Carried 2 | 1 2 2 Average Carried 1 | . 1 2 Final Capacity 2 | 1 2 2 Final Carried 2 | 1 2 2 Class Distribution -------------------- 100% | Mutant Dominant Class ---------------- Mutant | -10/Materials Mutant | -10/Mines Resources | -11 -10 -10 ----------- Run | Scr Mat Min Matter Collected 651 | 298 353 . Remotely . | . . . Salvage Created 679 | 112 434 133 Parts 43 | 7 28 8 Haulers Intercepted 2 | . 2 . Recyclers Shooed 4 | 1 2 1 Parts Field Recycled . | . . . Retrieved Matter . | . . . Parts Self-Destructed . | . . . Prevented . | . . . Kills | -11 -10 -10 ------- Run | Scr Mat Min Combat Hostiles Destroyed 17 | . 16 1 Guns 4 | . 4 . AOE 13 | . 12 1 Classes Destroyed 8 | 2 5 1 Worker 1 | . 1 . Builder 1 | . . 1 Tunneler 1 | 1 . . Hauler 2 | . 2 . Recycler 4 | 1 2 1 Operator 2 | . 2 . Swarmer 6 | . 6 . Grunt 11 | . 10 1 Best Kill Streak 7 | 2 7 3 Combat Bots Only 4 | . 4 1 Max Kills in Single Turn 3 | 1 3 1 Gunslinging . | . . . Exploded 3 | . 3 1 Melee . | . . . Uniques/NPCs Destroyed . | . . . Combat | -11 -10 -10 -------- Run | Scr Mat Min Damage Taken 974 | . 775 199 Core 801 | . 646 155 Absorbed by Shields . | . . . Redirected to Core 600 | . 450 150 Core Remaining (%) 100 | 100 . . Volleys Fired 99 | 4 79 16 Largest 2 | 2 1 1 Hottest 40 | 40 30 30 Shots Fired 103 | 8 79 16 Gun 80 | 8 61 11 Cannon . | . . . Launcher 23 | . 18 5 Special . | . . . Kinetic 80 | 8 61 11 Thermal . | . . . Explosive 23 | . 18 5 Electromagnetic . | . . . Robot Hit Streak 11 | 6 11 6 Robot Miss Streak 5 | 1 5 1 Penetration Max . | . . . Secondary Targets . | . . . Shots Hit Robots 66 | 6 49 11 Core Hits 55 | 4 44 7 Critical Hits . | . . . Critical Kills . | . . . Critical Parts Destroyed . | . . . Melee Attacks . | . . . Impact . | . . . Slashing . | . . . Piercing . | . . . Sneak Attacks . | . . . Combat Hostiles . | . . . Follow-up Attacks . | . . . Damage Inflicted 2128 | 45 1710 373 Guns 457 | 45 341 71 Cannons . | . . . Explosions 1671 | . 1369 302 Melee . | . . . Ramming . | . . . Kinetic 457 | 45 341 71 Thermal 141 | . 141 . Explosive 1530 | . 1228 302 Electromagnetic . | . . . Impact . | . . . Slashing . | . . . Piercing . | . . . Highest Corruption 1 | . 1 1 Average Corruption 1 | . 1 1 Corruption Purged . | . . . Effects 1 | . 1 . Energy Discharges 1 | . 1 . Overload Shots . | . . . Overflow Damage 108 | . 108 . Projectiles . | . . . Explosions 108 | . 108 . Melee . | . . . Knockbacks . | . . . Impact . | . . . Kinetic . | . . . Secondary . | . . . Self-Inflicted Damage 242 | . 226 16 Shots 6 | . 5 1 Rammed . | . . . Targets Rammed . | . . . Kicked . | . . . Crushed . | . . . Highest Temperature 16 | . 16 16 Average Temperature 4 | . 3 7 Received Heat Transfer 261 | . 156 105 Siege Activations . | . . . Robots Corrupted . | . . . Combat Hostiles . | . . . Parts Fried . | . . . Impact Corruptions . | . . . Robots Melted . | . . . Combat Hostiles . | . . . Parts Melted . | . . . Heat Transferred 100 | . 100 . Parts Sabotaged . | . . . Parts Stolen . | . . . Parts Stripped . | . . . Power Chain Reactions . | . . . Missiles Intercepted . | . . . Alert | -11 -10 -10 ------- Run | Scr Mat Min Peak Influence 534 | 10 534 234 Average Influence 296 | 3 330 216 Maximum Alert Level 2 | . 2 1 Low Security (%) 22 | 100 17 . Level 1 53 | . 54 100 Level 2 24 | . 28 . Level 3 . | . . . Level 4 . | . . . Level 5 . | . . . High Security . | . . . Max Security . | . . . Squads Dispatched 2 | . 2 . Investigation . | . . . Extermination . | . . . Reinforcement 2 | . 2 . Assault . | . . . Garrison . | . . . Intercept . | . . . Construction Impeded . | . . . Haulers Reinforced . | . . . Stealth | -11 -10 -10 --------- Run | Scr Mat Min Distress Signals 3 | . 3 . Communications Jammed . | . . . Distress Signals . | . . . Times Spotted 27 | . 25 2 Peak Tracking Total 6 | . 6 2 Tactical Retreats 1 | . 1 . Traps | -11 -10 -10 ------- Run | Scr Mat Min Traps Triggered 2 | . 2 . Indirectly . | . . . Trap Hack Attempts . | . . . Triggered . | . . . Disarmed . | . . . Reprogrammed . | . . . Reused . | . . . Traps Extracted . | . . . Installed . | . . . Triggered . | . . . Machines | -11 -10 -10 ---------- Run | Scr Mat Min Machines Disabled 8 | . 8 . Max in Single Turn 2 | . 2 . Machines Sabotaged . | . . . Garrisons Compromised . | . . . Overloaded Fab Kills . | . . . Fab Network Shutdowns . | . . . Hacking | -11 -10 -10 --------- Run | Scr Mat Min Machines Accessed 7 | . 7 . Terminals 4 | . 4 . Fabricators . | . . . Repair Stations 1 | . 1 . Recycling Units 2 | . 2 . Scanalyzers . | . . . Garrison Access . | . . . Total Hacks 19 | . 19 . Successful 14 | . 14 . Failed 5 | . 5 . Catastrophic . | . . . Database Lockouts . | . . . Manual 8 | . 8 . Terminals 10 | . 10 . Fabricators . | . . . Repair Stations 3 | . 3 . Recycling Units 6 | . 6 . Scanalyzers . | . . . Garrison Access . | . . . Terminal Hacks 3 | . 3 . Terminal Index 1 | . 1 . Locate Traps 1 | . 1 . Zone Layout 1 | . 1 . Fabricator Hacks . | . . . Repair Station Hacks 2 | . 2 . Scan Component 1 | . 1 . Repair 1 | . 1 . Recycling Unit Hacks 3 | . 3 . Report Inventory 2 | . 2 . Retrieve Components 1 | . 1 . Scanalyzer . | . . . Garrison Access Hacks . | . . . Unauthorized Hacks 13 | . 13 . Terminals 4 | . 4 . Assimilate 1 | . 1 . Botnet 3 | . 3 . Fabricators . | . . . Repair Stations . | . . . Recycling Units 2 | . 2 . Reject 1 | . 1 . Mask 1 | . 1 . Scanalyzers . | . . . Garrison Access . | . . . Data Cores Recovered . | . . . Used . | . . . Hacking Detections 6 | . 6 . Full Trace Events . | . . . Feedback Events . | . . . Feedback Blocked . | . . . Robot Schematics Acquired . | . . . Robots Built . | . . . Matter . | . . . Time . | . . . Total Robot Build Rating . | . . . Part Schematics Acquired . | . . . Parts Built . | . . . Matter . | . . . Time . | . . . Total Part Build Rating . | . . . Parts Repaired 1 | . 1 . Time 38 | . 38 . Parts Recycled . | . . . Recycled Matter . | . . . Retrieved Matter . | . . . Retrieved Components 2 | . 2 . Parts Scanalyzed . | . . . Part Schematics Acquired . | . . . Parts Damaged . | . . . Bothacking | -11 -10 -10 ------------ Run | Scr Mat Min Used RIF Installer . | . . . Robots Hacked . | . . . Non-combat . | . . . Combat . | . . . Robot Hacks Applied . | . . . Relay Couplers Released . | . . . Robots Rewired . | . . . Allies Hacked . | . . . Hacks Repelled . | . . . Allies | -11 -10 -10 -------- Run | Scr Mat Min Total Allies . | . . . Largest Group . | . . . Highest-Rated Group . | . . . Highest-Rated Ally . | . . . Total Orders . | . . . Ally Attacks . | . . . Total Damage . | . . . Kills . | . . . Allies Corrupted . | . . . Allies Melted . | . . . Intel | -11 -10 -10 ------- Run | Scr Mat Min Robot Analysis Total . | . . . Derelict Logs Recovered . | . . . Drone Launches . | . . . Drone Recoveries . | . . . Exploration | -11 -10 -10 ------------- Run | Scr Mat Min Turns Passed 811 | 61 686 64 Spaces Moved 949 | 65 837 47 Core 937 | 63 827 47 Treads 12 | 2 10 . Legs . | . . . Wheels . | . . . Hover . | . . . Flight . | . . . Fastest Speed 50 | 50 50 50 Average Speed 51 | 53 51 50 Slowest Speed 160 | 160 160 50 Overloaded Moves . | . . . Propulsion Burnouts . | . . . Robots Hopped . | . . . Cave-ins Triggered 1 | . 1 . Exploration Rate (%) 39 | 4 99 14 Regions Visited 2 Branch Regions 1 Pre-discovered Areas . | . . . Known Exits Taken 1 | . 1 . Unknown Exits Taken 1 | 1 . . Scrap Searched . | . . . Spaces Dug 20 | . 10 10 Terrain Destroyed 208 | . 174 34 Melee . | . . . Projectile . | . . . AOE 208 | . 174 34 Actions | -11 -10 -10 --------- Run | Scr Mat Min Total 1181 | 81 1026 74 Wait 80 | . 69 11 Move 947 | 64 836 47 Hop . | . . . Pick Up 6 | 1 5 . Fast Attach 19 | 9 10 . Attach 1 | . 1 . Detach 5 | 1 4 . Swap 4 | . 4 . Drop 11 | 2 9 . Fire 99 | 4 79 16 Melee . | . . . Ram . | . . . Kick . | . . . Crush . | . . . Escape Stasis . | . . . Rewire . | . . . Trap . | . . . Miscellaneous 9 | . 9 . Route ------- -11/Scrapyard -10/Materials (discovered 4 exits: *Mat x3 / *Min) -10/Mines (discovered 1 exit: *Mat) History --------- Turn | Location | Event 5 | -11/Scrapyard | Discovered new exit (range 15) 12 | -11/Scrapyard | Upgraded with Propulsion slot (x1) 12 | -11/Scrapyard | Upgraded with Utility slot (x1) 12 | -11/Scrapyard | Upgraded with Weapon slot (x1) 62 | -11/Scrapyard | Entered Materials 147 | -10/Materials | Discovered new exit (range 14) 193 | -10/Materials | Core integrity fell below 50% 214 | -10/Materials | Discovered new exit (range 18) 298 | -10/Materials | Reached level 2 307 | -10/Materials | Build established: Mutant 337 | -10/Materials | Crushed by falling debris 337 | -10/Materials | Core integrity fell below 20% 434 | -10/Materials | Discovered new exit (range 18) 455 | -10/Materials | Upgraded with Utility slot (x2) 574 | -10/Materials | Repaired Lgt. Nuclear Core 637 | -10/Materials | Discovered new exit (range 16) 747 | -10/Materials | Identified exit to Mines 748 | -10/Materials | Entered Mines 750 | -10/Mines | Reached level 3 753 | -10/Mines | Discovered new exit (range 9) 757 | -10/Mines | Identified exit to Materials 812 | -10/Mines | Destroyed by G-47 Trooper with Particle Gun Last Messages --------------- 00727_ Dropped Lgt. Treads. 00727_ Acquired Lgt. Nuclear Core. 00728_ K-01 Serf collects debris. 00728_ U-05 Engineer builds a Wall. 00730_ U-05 Engineer lays Concrete. 00733_ U-05 Engineer builds a Wall. 00735_ Dropped Lgt. Nuclear Core. 00736_ Acquired Imp. Heat Sink. 00736_ U-05 Engineer builds a Wall. 00737_ U-05 Engineer lays Concrete. 00738_ U-05 Engineer builds a Wall. 00747_ EXIT=IDENTIFIED: MINES LOCATION=MINES GOAL=ESCAPE 00750_ Reached level 3. 00753_ EXIT=FOUND 00757_ EXIT=IDENTIFIED: MATERIALS 00783_ G-34 Mercenary destroyed. 00785_ U-05 Engineer destroyed. 00789_ The unstable cave ceiling collapses. Map ----- +----------------------------------------------------+ | ??????????????????????????????????? | | ??????????????????????????????????? | | ??????????????????????????????????? | | ????#####?????????????????????????? | | ???## ##?????######?????????????? | | ???# ####### ##????????????? | | ???# #????????????? | | ???# #????????????? | | ???# ###### #????????????? | | ???# ##????# ##????????????? | | ??## ##????# ##?????????????? | | ?## #???# ##??????????????? | | ?# < #??# #???????????????? | | ?# #??# #???????????????? | | ?# #??## #???????????????? | | ?# #???## ##???????????????? | | ?# ##????###????????????????? | | ?## ##????????????????????????? | | ??#### ##?????????????????????????? | | ??#### ####???????????????????????? | | ?## t #???????????????????????? | | ?# ## # #???????????????????????? | | # = ##??????????????????????? | | # %= #??????????????????????? | | *% !| #??????????????????????? | | g= @#??????????????????????? | | = #?????????????????????? | | #????????????????????? | | # ???????????????????? | | ?# # ??????????????????? | | ?#??## ##?????????????????? | | ?????## ##??????????????????? | | ??????# #???????????????????? | | ??????# ???????????????????? | | ??????# #??????????????????? | | ??????## ##??????????????????? | | ???????########???????????????????? | | ??????????????????????????????????? | | ??????????????????????????????????? | | | | | | | | | | | | | | | | | | | | | | | +----------------------------------------------------+ Best States ------------- Heat Dissipation 25 Energy Generation 14 Energy Capacity 250 Matter Stores 300 Matter Capacity 300 Sight Range 18 Robot Scan Range 10 Terrain Scan Range 16 Terrain Scan Density 60 Evasion (%) 50 Targeting Accuracy 5 Recoil Reduction 2 Offensive Hacking 10 Item Schematics ----------------- None Robot Schematics ------------------ None Fabricated ------------ Nothing Alien Tech Used ----------------- None Achievements -------------- None Challenges ------------ None RPGLIKE | -11 -10 -10 --------- Run | Scr Mat Min Levels Raised 2 | . 1 1 XP Earned 6191 | 3000 2591 600 XP Spent 4250 | 1850 2400 . Upgrades 8 | 5 3 . Propulsion Slot 1 | 1 . . Utility Slot 3 | 1 2 . Weapon Slot 1 | 1 . . Mass Support 1 | 1 . . Inventory Capacity 2 | 1 1 . Protomatter Created 112 | . 112 . Integrity Restored 192 | . 192 . Core 192 | . 192 . Protomatter Decayed 8 | . 8 . Game ------ Seed IntegratedWarpLauncher Manual? 0 Play Time 00:14:01 Cumulative 127.4 hours Start 2020.04.07 @ 17:21:18 End 2020.04.07 @ 17:34:25 Sessions 1 Manual Loads 0 Difficulty Rogue Special Mode Winter2019/RPGLIKE Game No. 47 Rogue 47 Adventurer 0 Explorer 0 Win Type - Total 1 Types 1/0/0/0/0/0/0 Lore% 54 Gallery% 66 Achievement% 61 Wizard Run 0 Options --------- ASCII 1 Keyboard 1 Movement Numpad Keybinds 0 Fullscreen 1 Font 16/SmallcapsGlow Map View 75x55 Tactical HUD 1 Map Filters NONE Filters NONE Steam 1 RUN: 24b2c423-bd25-43e1-a29b-9b06180d8936